fUSD/lending_fUSD_20250120
["ID","MTS","AMOUNT","RATE_DAILY","PERIOD"]
[349695144,1737379850174,-500.0,0.00019802,2]
[349695145,1737379850185,-500.0,0.00019802,2]
[349695146,1737379850194,-500.0,0.00019802,2]
[349695147,1737379850204,-500.0,0.00019802,2]
[349695148,1737379850213,-500.0,0.00019802,2]
[349695149,1737379850222,-500.0,0.00019802,2]
[349695150,1737379850237,-500.0,0.00019802,2]
[349695151,1737379850246,-500.0,0.00019802,2]
[349695152,1737379850425,-500.0,0.00019802,2]
[349695153,1737379850435,-500.0,0.00019802,2]
[349695154,1737379850445,-513.69794764,0.00019802,2]
[349695155,1737379850454,-500.0,0.00019802,2]
[349695156,1737379850463,-500.0,0.00019802,2]
[349695157,1737379850472,-505.65230169,0.00019802,2]
[349695158,1737379850486,-500.0,0.00019802,2]
[349695159,1737379850495,-263.68165746,0.00019802,2]
[349695160,1737379850504,-500.0,0.00019802,2]
[349695161,1737379850513,-500.0,0.00019802,2]
[349695162,1737379850523,-500.0,0.00019802,2]
[349695163,1737379850532,-500.0,0.00019802,2]
[349695164,1737379850541,-505.43611006,0.00019802,2]
[349695165,1737379850550,-500.0,0.00019802,2]
[349695166,1737379850559,-500.0,0.00019802,2]
[349695167,1737379850568,-500.0,0.00019802,2]
[349695168,1737379850578,-429.18610459,0.00019802,2]
[349695169,1737379850588,-500.0,0.00019802,2]
[349695170,1737379850597,-500.0,0.00019802,2]
[349695171,1737379850606,-500.0,0.00019802,2]
[349695172,1737379850615,-500.0,0.00019802,2]
[349695173,1737379850624,-500.0,0.00019802,2]
[349695174,1737379850633,-500.0,0.00019802,2]
[349695175,1737379850643,-500.0,0.00019802,2]
[349695176,1737379850652,-505.90113846,0.00019802,2]
[349695177,1737379850662,-500.0,0.00019802,2]
[349695178,1737379850671,-253.99689761,0.00019802,2]
[349695179,1737379850680,-512.26347341,0.00019802,2]
[349695180,1737379850689,-500.0,0.00019802,2]
[349695181,1737379850699,-500.0,0.00019802,2]
[349695182,1737379850708,-500.0,0.00019802,2]
[349695183,1737379850718,-554.88,0.00019802,2]
[349695184,1737379850731,-500.0,0.00019802,2]
[349695185,1737379850743,-500.0,0.00019802,2]
[349695186,1737379850752,-500.0,0.00019802,2]
[349695187,1737379850762,-500.0,0.00019802,2]
[349695188,1737379850771,-500.0,0.00019802,2]
[349695189,1737379850785,-500.0,0.00019802,2]
[349695190,1737379850795,-180.3633288,0.00019802,2]
[349695191,1737379850805,-500.0,0.00019802,2]
[349695192,1737379850818,-508.85299448,0.00019802,2]
[349695193,1737379850827,-500.0,0.00019802,2]
[349695194,1737379850836,-500.0,0.00019802,2]
[349695195,1737379850846,-513.188417,0.00019802,2]
[349695196,1737379850855,-500.0,0.00019802,2]
[349695197,1737379850864,-500.0,0.00019802,2]
[349695198,1737379850873,-500.0,0.00019802,2]
[349695199,1737379850882,-500.0,0.00019802,2]
[349695200,1737379850892,-500.0,0.00019802,2]
[349695201,1737379850901,-280.7658057,0.00019802,2]
[349695202,1737379850911,-500.0,0.00019802,2]
[349695203,1737379850920,-202.66,0.00019802,2]
[349695204,1737379850929,-500.0,0.00019802,2]
[349695205,1737379850939,-500.0,0.00019802,2]
[349695206,1737379850948,-309.08478319,0.00019802,2]
[349695207,1737379850958,-752.68,0.00019802,2]
[349695208,1737379850967,-500.0,0.00019802,2]
[349695209,1737379850981,-500.0,0.00019802,2]
[349695210,1737379850990,-500.0,0.00019802,2]
[349695211,1737379851000,-500.0,0.00019802,2]
[349695212,1737379851009,-500.0,0.00019802,2]
[349695213,1737379851018,-500.0,0.00019802,2]
[349695214,1737379851027,-500.0,0.00019802,2]
[349695215,1737379851037,-500.0,0.00019802,2]
[349695216,1737379851046,-500.0,0.00019802,2]
[349695217,1737379851055,-500.0,0.00019802,2]
[349695218,1737379851065,-500.0,0.00019802,2]
[349695219,1737379851074,-500.0,0.00019802,2]
[349695220,1737379851085,-500.0,0.00019802,2]
[349695221,1737379851095,-500.0,0.00019802,2]
[349695222,1737379851104,-500.0,0.00019802,2]
[349695223,1737379851114,-500.0,0.00019802,2]
[349695224,1737379851123,-500.0,0.00019802,2]
[349695225,1737379851132,-552.24,0.00019802,2]
[349695226,1737379851142,-500.0,0.00019802,2]
[349695227,1737379851152,-500.0,0.00019802,2]
[349695228,1737379851161,-640.013684,0.00019803,2]
[349695229,1737379851171,-500.0,0.00019803,2]
[349695230,1737379851180,-500.0,0.00019803,2]
[349695231,1737379851191,-769.84,0.00019803,2]
[349695232,1737379851200,-514.65,0.00019803,2]
[349695233,1737379851210,-500.0,0.00019803,2]
[349695234,1737379851219,-1745.3,0.00019803,2]
[349695235,1737379851230,-500.0,0.00019803,2]
[349695236,1737379851240,-500.0,0.00019803,2]
[349695237,1737379851250,-500.0,0.00019803,2]
[349695238,1737379851259,-500.0,0.00019803,2]
[349695239,1737379851269,-159.94222368,0.00019803,2]
[349695240,1737379851279,-500.0,0.00019803,2]
[349695241,1737379851289,-500.0,0.00019803,2]
[349695242,1737379851298,-500.0,0.00019803,2]
[349695243,1737379851308,-500.0,0.00019803,2]
[349695244,1737379851318,-500.0,0.00019803,2]
[349695245,1737379851327,-576.96,0.00019803,2]
[349695246,1737379851337,-585.15,0.00019803,2]
[349695247,1737379851346,-513.26,0.00019803,2]
[349695248,1737379851356,-500.0,0.00019803,2]
[349695249,1737379851365,-500.0,0.00019803,2]
[349695250,1737379851374,-500.0,0.00019803,2]
[349695251,1737379851384,-500.0,0.00019803,2]
[349695252,1737379851393,-500.0,0.00019803,2]
[349695253,1737379851402,-565.25,0.00019803,2]
[349695254,1737379851411,-625.25,0.00019803,2]
[349695255,1737379851421,-500.0,0.00019803,2]
[349695256,1737379851430,-759.82,0.00019803,2]
[349695257,1737379851440,-500.0,0.00019803,2]
[349695258,1737379851449,-500.0,0.00019803,2]
[349695259,1737379851459,-500.0,0.00019803,2]
[349695260,1737379851468,-605.72,0.00019803,2]
[349695261,1737379851481,-500.0,0.00019803,2]
[349695262,1737379851492,-500.0,0.00019803,2]
[349695263,1737379851502,-500.0,0.00019803,2]
[349695264,1737379851511,-500.0,0.00019803,2]
[349695265,1737379851520,-500.0,0.00019803,2]
[349695266,1737379851529,-500.0,0.00019803,2]
[349695267,1737379851539,-500.0,0.00019803,2]
[349695268,1737379851549,-500.0,0.00019803,2]
[349695269,1737379851559,-500.0,0.00019803,2]
[349695270,1737379851568,-500.0,0.00019803,2]
[349695271,1737379851577,-500.0,0.00019803,2]
[349695272,1737379851586,-821.54,0.00019803,2]
[349695273,1737379851596,-500.0,0.00019803,2]
[349695274,1737379851605,-500.0,0.00019803,2]
[349695275,1737379851615,-500.0,0.00019803,2]
[349695276,1737379851624,-500.0,0.00019803,2]
[349695277,1737379851634,-500.0,0.00019803,2]
[349695278,1737379851643,-500.0,0.00019803,2]
[349695279,1737379851653,-500.0,0.00019803,2]
[349695280,1737379851663,-518.97,0.00019803,2]
[349695281,1737379851672,-622.83,0.00019803,2]
[349695282,1737379851681,-500.0,0.00019803,2]
[349695283,1737379851692,-781.89,0.00019803,2]
[349695284,1737379851702,-500.0,0.00019803,2]
[349695285,1737379851711,-500.0,0.00019803,2]
[349695286,1737379851720,-812.67,0.00019803,2]
[349695287,1737379851735,-500.0,0.00019803,2]
[349695288,1737379851744,-500.0,0.00019803,2]
[349695289,1737379851754,-500.0,0.00019803,2]
[349695290,1737379851763,-759.74,0.00019803,2]
[349695291,1737379851772,-500.0,0.00019803,2]
[349695292,1737379851782,-500.0,0.00019803,2]
[349695293,1737379851791,-500.0,0.00019803,2]
[349695294,1737379851802,-720.62,0.00019803,2]
[349695295,1737379851813,-500.0,0.00019803,2]
[349695296,1737379851822,-500.0,0.00019803,2]
[349695297,1737379851831,-500.0,0.00019803,2]
[349695298,1737379851840,-801.28,0.00019803,2]
[349695299,1737379851849,-728.24,0.00019803,2]
[349695300,1737379851859,-630.63,0.00019803,2]
[349695301,1737379851868,-500.0,0.00019803,2]
[349695302,1737379851877,-775.03,0.00019803,2]
[349695303,1737379851886,-500.0,0.00019803,2]
[349695304,1737379851895,-588.34,0.00019803,2]
[349695305,1737379851904,-500.0,0.00019803,2]
[349695306,1737379851913,-500.0,0.00019803,2]
[349695307,1737379851923,-500.0,0.00019803,2]
[349695308,1737379851931,-500.0,0.00019803,2]
[349695309,1737379851941,-700.73,0.00019803,2]
[349695310,1737379851950,-500.0,0.00019803,2]
[349695311,1737379851959,-500.0,0.00019803,2]
[349695312,1737379851968,-585.95,0.00019803,2]
[349695313,1737379851977,-500.0,0.00019803,2]
[349695314,1737379851992,-667.6,0.00019803,2]
[349695315,1737379852001,-1192.9,0.00019803,2]
[349695316,1737379852011,-500.0,0.00019803,2]
[349695317,1737379852020,-500.0,0.00019803,2]
[349695318,1737379852029,-500.0,0.00019803,2]
[349695319,1737379852038,-1347.83,0.00019803,2]
[349695320,1737379852047,-500.0,0.00019803,2]
[349695321,1737379852056,-1359.42,0.00019803,2]
[349695322,1737379852066,-500.0,0.00019803,2]
[349695323,1737379852075,-893.51,0.00019803,2]
[349695324,1737379852085,-1144.3,0.00019803,2]
[349695325,1737379852095,-623.88,0.00019803,2]
[349695326,1737379852105,-1373.26,0.00019803,2]
[349695327,1737379852115,-500.0,0.00019803,2]
[349695328,1737379852124,-861.66,0.00019803,2]
[349695329,1737379852134,-500.0,0.00019803,2]
[349695330,1737379852144,-1443.06,0.00019803,2]
[349695331,1737379852153,-877.27,0.00019803,2]
[349695332,1737379852162,-1393.21,0.00019803,2]
[349695333,1737379852171,-500.0,0.00019803,2]
[349695334,1737379852181,-939.17,0.00019803,2]
[349695335,1737379852191,-2549.86,0.00019803,2]
[349695336,1737379852200,-892.01,0.00019803,2]
[349695337,1737379852210,-721.71,0.00019803,2]
[349695338,1737379852220,-500.0,0.00019803,2]
[349695339,1737379852232,-1760.53,0.00019803,2]
[349695340,1737379852242,-500.0,0.00019803,2]
[349695341,1737379852251,-876.76,0.00019803,2]
[349695342,1737379852260,-500.0,0.00019803,2]
[349695343,1737379852269,-2563.43,0.00019803,2]
[349695344,1737379852278,-500.0,0.00019803,2]
[349695345,1737379852288,-481.52771057,0.00019803,2]
[349695346,1737379852297,-573.37,0.00019803,2]
[349695347,1737379852306,-500.0,0.00019803,2]
[349695348,1737379852316,-500.0,0.00019803,2]
[349695349,1737379852325,-626.22,0.00019803,2]
[349695350,1737379852334,-1161.45,0.00019803,2]
[349695351,1737379852344,-500.0,0.00019803,2]
[349695352,1737379852354,-1306.58,0.00019803,2]
[349695353,1737379852363,-500.0,0.00019803,2]
[349695354,1737379852373,-500.0,0.00019803,2]
[349695355,1737379852383,-693.54,0.00019803,2]
[349695356,1737379852392,-2277.36,0.00019803,2]
[349695357,1737379852402,-500.0,0.00019803,2]
[349695358,1737379852412,-1416.96,0.00019803,2]
[349695359,1737379852422,-2318.94,0.00019803,2]
[349695360,1737379852431,-500.0,0.00019803,2]
[349695361,1737379852440,-621.21,0.00019803,2]
[349695362,1737379852450,-500.0,0.00019803,2]
[349695363,1737379852459,-500.0,0.00019803,2]
[349695364,1737379852468,-500.0,0.00019803,2]
[349695365,1737379852479,-1056.53,0.00019803,2]
[349695366,1737379852488,-1533.16,0.00019803,2]
[349695367,1737379852497,-879.45,0.00019803,2]
[349695368,1737379852507,-500.0,0.00019803,2]
[349695369,1737379852516,-626.15,0.00019803,2]
[349695370,1737379852525,-1020.54,0.00019803,2]
[349695371,1737379852535,-500.0,0.00019803,2]
[349695372,1737379852544,-522.96,0.00019803,2]
[349695373,1737379852553,-1968.17,0.00019803,2]
[349695374,1737379852563,-500.0,0.00019803,2]
[349695375,1737379852572,-500.0,0.00019803,2]
[349695376,1737379852581,-2219.37,0.00019803,2]
[349695377,1737379852591,-618.7,0.00019803,2]
[349695378,1737379852600,-1181.93,0.00019803,2]
[349695379,1737379852609,-684.8,0.00019803,2]
[349695380,1737379852618,-1124.66,0.00019803,2]
[349695381,1737379852627,-1170.67,0.00019803,2]
[349695382,1737379852636,-1107.4,0.00019803,2]
[349695383,1737379852646,-1018.45,0.00019803,2]
[349695384,1737379852656,-1975.88,0.00019803,2]
[349695385,1737379852667,-500.0,0.00019803,2]
[349695386,1737379852677,-618.04,0.00019803,2]
[349695387,1737379852686,-714.15,0.00019803,2]
[349695388,1737379852695,-592.15,0.00019803,2]
[349695389,1737379852705,-2145.16,0.00019803,2]
[349695390,1737379852714,-500.0,0.00019803,2]
[349695391,1737379852723,-516.69,0.00019803,2]
[349695392,1737379852735,-766.96,0.00019803,2]
[349695393,1737379852748,-500.0,0.00019803,2]
[349695394,1737379852757,-500.0,0.00019803,2]
[349695395,1737379852767,-764.44,0.00019803,2]
[349695396,1737379852776,-647.22,0.00019803,2]
[349695397,1737379852786,-2802.58,0.00019803,2]
[349695398,1737379852796,-519.81,0.00019803,2]
[349695399,1737379852805,-500.0,0.00019803,2]
[349695400,1737379852815,-275.89316069,0.00019803,2]
[349695401,1737379852824,-500.0,0.00019803,2]
[349695402,1737379852834,-2246.89,0.00019803,2]
[349695403,1737379852843,-500.0,0.00019803,2]
[349695404,1737379852852,-500.0,0.00019803,2]
[349695405,1737379852861,-647.1,0.00019803,2]
[349695406,1737379852871,-284.79929659,0.00019803,2]
[349695407,1737379852880,-1087.84,0.00019803,2]
[349695408,1737379852889,-500.0,0.00019803,2]
[349695409,1737379852898,-500.0,0.00019803,2]
[349695410,1737379852908,-138.52891675,0.00019803,2]
[349695411,1737379853140,-783.05108325,0.00019803,2]
[349695412,1737379853150,-63.75333174,0.00019803,2]
[349695413,1737379853161,-436.24666826,0.00019803,2]
[349695414,1737379853170,-500.0,0.00019803,2]
[349695415,1737379853179,-500.0,0.00019803,2]
[349695416,1737379853188,-500.0,0.00019803,2]
[349695417,1737379853197,-500.0,0.00019803,2]
[349695418,1737379853207,-216.45644759,0.00019803,2]
[349695419,1737379853216,-764.11,0.00019803,2]
[349695420,1737379853225,-631.18103551,0.00019803,2]
[349695421,1737379853412,-501.2689923,0.00019255,2]
[349695422,1737379853423,-117.02896449,0.00019803,2]
[349695423,1737379853432,-500.0,0.00019803,2]
[349695424,1737379853441,-500.0,0.00019803,2]
[349695425,1737379853450,-344.55704323,0.00019803,2]
[349695426,1737379853461,-721.34295677,0.00019803,2]
[349695427,1737379853470,-518.49,0.00019803,2]
[349695428,1737379853482,-1483.94,0.00019803,2]
[349695429,1737379853492,-1862.58,0.00019803,2]
[349695430,1737379853501,-688.9,0.00019803,2]
[349695431,1737379853510,-500.0,0.00019803,2]
[349695432,1737379853519,-1094.94,0.00019803,2]
[349695433,1737379853529,-1098.48,0.00019803,2]
[349695434,1737379853538,-500.0,0.00019803,2]
[349695435,1737379853547,-990.96,0.00019803,2]
[349695436,1737379853557,-939.6,0.00019803,2]
[349695437,1737379853567,-500.0,0.00019803,2]
[349695438,1737379853576,-1830.47,0.00019803,2]
[349695439,1737379853586,-794.34,0.00019803,2]
[349695440,1737379853596,-975.88,0.00019803,2]
[349695441,1737379853607,-500.0,0.00019803,2]
[349695442,1737379853617,-1936.82,0.00019803,2]
[349695443,1737379853627,-848.46,0.00019803,2]
[349695444,1737379853637,-1889.42,0.00019803,2]
[349695445,1737379853648,-500.0,0.00019803,2]
[349695446,1737379853658,-500.0,0.00019803,2]
[349695447,1737379853668,-500.0,0.00019803,2]
[349695448,1737379853679,-500.0,0.00019804,2]
[349695449,1737379853689,-500.74607928,0.00019804,2]
[349695450,1737379853700,-500.0,0.00019804,2]
[349695451,1737379853710,-500.0,0.00019804,2]
[349695452,1737379853721,-500.0,0.00019804,2]
[349695453,1737379853736,-500.0,0.00019804,2]
[349695454,1737379853746,-500.0,0.00019804,2]
[349695455,1737379853756,-500.0,0.00019804,2]
[349695456,1737379853767,-500.0,0.00019804,2]
[349695457,1737379853778,-500.0,0.00019804,2]
[349695458,1737379853788,-522.47,0.00019804,2]
[349695459,1737379853797,-500.0,0.00019804,2]
[349695460,1737379853807,-204.12808984,0.00019823,2]
[349695461,1737379853817,-1000.0,0.000199,7]
[349695462,1737379853828,-1058.77264359,0.00019977,2]
[349695463,1737379853837,-402.4,0.0002,14]
[349695464,1737379853847,-1391.49667977,0.0002,5]
[349695465,1737379853857,-250.0,0.0002,2]
[349695466,1737379853867,-1267.42,0.0002,2]
[349695467,1737379853876,-883.11,0.0002,2]
[349695468,1737379853885,-993.1,0.0002,2]
[349695469,1737379853895,-1627.97,0.0002,2]
[349695470,1737379853904,-577.18,0.0002,2]
[349695471,1737379853913,-738.67,0.0002,2]
[349695472,1737379853923,-1055.01,0.0002,2]
[349695473,1737379853933,-583.27,0.0002,2]
[349695474,1737379853944,-1194.51,0.0002,2]
[349695475,1737379853954,-1516.4,0.0002,2]
[349695476,1737379853963,-500.0,0.0002,2]
[349695477,1737379853973,-1121.79,0.0002,2]
[349695478,1737379853988,-838.52,0.0002,2]
[349695479,1737379853997,-500.0,0.0002,2]
[349695480,1737379854006,-1047.18,0.0002,2]
[349695481,1737379854015,-500.0,0.0002,2]
[349695482,1737379854024,-800.17,0.0002,2]
[349695483,1737379854033,-2912.56,0.0002,2]
[349695484,1737379854043,-615.16,0.0002,2]
[349695485,1737379854052,-500.0,0.0002,2]
[349695486,1737379854061,-500.0,0.0002,2]
[349695487,1737379854071,-1014.08,0.0002,2]
[349695488,1737379854081,-278.30105753,0.0002,2]
[349695489,1737379854091,-4044.99,0.0002,2]
[349695490,1737379854100,-1029.66,0.0002,2]
[349695491,1737379854110,-591.9,0.0002,2]
[349695492,1737379854120,-2300.56,0.0002,2]
[349695493,1737379854131,-500.0,0.0002,2]
[349695494,1737379854141,-671.97,0.0002,2]
[349695495,1737379854151,-550.45362814,0.0002,2]
[349695496,1737379854161,-160.49519242,0.00020029,2]
[349695497,1737379854171,-204.12808984,0.00020054,2]
[349695498,1737379854181,-500.0,0.00020076,2]
[349695499,1737379854191,-500.0,0.00020076,2]
[349695500,1737379854201,-500.0,0.00020076,2]
[349695501,1737379854211,-500.0,0.00020076,2]
[349695502,1737379854221,-500.0,0.00020076,2]
[349695503,1737379854232,-160.82058282,0.00020076,2]
[349695504,1737379854245,-339.17941718,0.00020076,2]
[349695505,1737379854254,-500.0,0.00020076,2]
[349695506,1737379854264,-422.14119181,0.00020076,2]
[349695507,1737379854274,-500.0,0.00020076,2]
[349695508,1737379854283,-500.0,0.00020076,2]
[349695509,1737379854294,-500.0,0.00020076,2]
[349695510,1737379854303,-500.0,0.00020076,2]
[349695511,1737379854313,-22.77939101,0.00020076,2]
[349695512,1737379854362,-477.22060899,0.00020076,2]
[349695513,1737379854373,-59.67939101,0.00020076,2]
[349695515,1737379865330,208.25,0.00010137,2]
[349695516,1737379962485,150.0,0.00012,2]
[349695531,1737381032379,-200.0,0.00015,5]
[349695532,1737381032389,-1437.22047368,0.00015835,2]
[349695533,1737381032399,-701.21,0.00015935,2]
[349695534,1737381032408,-208.25,0.00016813,2]
[349695535,1737381032418,-300.0,0.00017852,2]
[349695536,1737381032427,-664.49,0.00017853,2]
[349695537,1737381032439,-677.54686905,0.00017853,2]
[349695538,1737381032452,-322.45313095,0.00017853,2]
[349695539,1737381032462,-250.0,0.00017853,2]
[349695540,1737381032471,-339.73,0.00017853,2]
[349695541,1737381032481,-176.41,0.00017853,2]
[349695542,1737381032491,-600.0,0.00018,2]
[349695543,1737381032501,-500.0,0.00018164,2]
[349695544,1737381032511,-250.0,0.00018171,2]
[349695545,1737381032520,-701.21,0.00018199,2]
[349695546,1737381032529,-200.0,0.00018227,2]
[349695547,1737381032539,-250.0,0.00018471,2]
[349695548,1737381032548,-200.0,0.00018472,2]
[349695549,1737381032558,-177.09,0.00018638,2]
[349695550,1737381032567,-183.23,0.00018712,2]
[349695551,1737381032576,-150.0,0.00018863,2]
[349695552,1737381032586,-150.0,0.00018977,2]
[349695553,1737381032595,-150.0,0.0001899,2]
[349695554,1737381032604,-6555.81985625,0.00018992,2]
[349695555,1737381032616,-1290.68,0.00018992,2]
[349695556,1737381032645,-13333.75701739,0.00018992,2]
[349695557,1737381032791,-1144.24480203,0.00018992,2]
[349695558,1737381032803,-1575.49832433,0.00018992,2]
[349695559,1737381032812,-150.0,0.00019024,2]
[349695560,1737381032821,-668.91963774,0.00019078,2]
[349695934,1737381038333,-338.53188285,0.00019078,2]
[349695935,1737381038343,-36134.184,0.00019078,2]
[349695936,1737381038352,-150.0,0.00019103,2]
[349695937,1737381038362,-150.0,0.00019125,2]
[349695938,1737381038371,-973.571,0.00019145,2]
[349695939,1737381038379,-24109.5548,0.00019154,2]
[349695940,1737381038389,-150.0,0.00019154,2]
[349695941,1737381038398,-500.0,0.00019178,2]
[349695942,1737381038408,-508.64,0.00019178,2]
[349695943,1737381038417,-500.0,0.00019178,2]
[349695944,1737381038427,-500.0,0.00019178,2]
[349695945,1737381038437,-500.0,0.00019178,2]
[349695946,1737381038447,-500.0,0.00019178,2]
[349695947,1737381038457,-500.0,0.00019178,2]
[349695948,1737381038467,-500.0,0.00019178,2]
[349695949,1737381038477,-509.89847375,0.00019178,2]
[349695950,1737381038486,-500.0,0.00019178,2]
[349695951,1737381038496,-284.06431727,0.00019178,2]
[349695952,1737381038505,-500.0,0.00019178,2]
[349695953,1737381038515,-500.0,0.00019178,2]
[349695954,1737381038525,-500.0,0.00019178,2]
[349695955,1737381038535,-500.0,0.00019178,2]
[349695956,1737381038545,-500.0,0.00019178,2]
[349695957,1737381038555,-500.0,0.00019178,2]
[349695958,1737381038565,-500.0,0.00019178,2]
[349695959,1737381038574,-500.0,0.00019178,2]
[349695960,1737381038583,-500.0,0.00019178,2]
[349695961,1737381038593,-500.0,0.00019178,2]
[349695962,1737381038602,-504.84,0.00019178,2]
[349695963,1737381038611,-500.0,0.00019178,2]
[349695964,1737381038621,-500.0,0.00019178,2]
[349695965,1737381038630,-500.0,0.00019178,2]
[349695966,1737381038639,-500.0,0.00019178,2]
[349695967,1737381038648,-500.0,0.00019178,2]
[349695968,1737381038657,-500.0,0.00019178,2]
[349695969,1737381038668,-500.0,0.00019178,2]
[349695970,1737381038677,-500.0,0.00019178,2]
[349695971,1737381038687,-547.09,0.00019178,2]
[349695972,1737381038696,-500.0,0.00019178,2]
[349695973,1737381038707,-500.0,0.00019178,2]
[349695974,1737381038717,-664.84,0.00019178,2]
[349695975,1737381038726,-500.0,0.00019178,2]
[349695976,1737381038735,-500.0,0.00019178,2]
[349695977,1737381038744,-500.0,0.00019178,2]
[349695979,1737381038754,-500.0,0.00019178,2]
[349695980,1737381038764,-500.0,0.00019178,2]
[349695981,1737381038773,-500.0,0.00019178,2]
[349695983,1737381038782,-500.0,0.00019178,2]
[349695985,1737381038792,-500.0,0.00019178,2]
[349695986,1737381038801,-500.0,0.00019178,2]
[349695987,1737381038810,-718.85,0.00019178,2]
[349695988,1737381038820,-502.72135558,0.00019178,2]
[349695989,1737381038829,-500.0,0.00019178,2]
[349695990,1737381038839,-500.0,0.00019178,2]
[349695992,1737381038848,-500.0,0.00019178,2]
[349695994,1737381038857,-500.0,0.00019178,2]
[349695996,1737381038866,-500.0,0.00019178,2]
[349695998,1737381038875,-500.0,0.00019178,2]
[349695999,1737381038885,-500.0,0.00019178,2]
[349696000,1737381038894,-500.0,0.00019178,2]
[349696001,1737381038904,-500.0,0.00019178,2]
[349696002,1737381038913,-500.0,0.00019178,2]
[349696003,1737381038922,-684.16,0.00019178,2]
[349696004,1737381038932,-500.0,0.00019178,2]
[349696005,1737381038941,-500.0,0.00019178,2]
[349696006,1737381038951,-500.0,0.00019178,2]
[349696007,1737381038962,-500.0,0.00019178,2]
[349696008,1737381038972,-529.45368532,0.00019178,2]
[349696009,1737381038982,-500.0,0.00019178,2]
[349696010,1737381038991,-500.0,0.00019178,2]
[349696011,1737381039001,-500.0,0.00019178,2]
[349696012,1737381039010,-500.0,0.00019178,2]
[349696013,1737381039019,-500.0,0.00019178,2]
[349696014,1737381039028,-503.52999574,0.00019178,2]
[349696015,1737381039037,-500.0,0.00019178,2]
[349696016,1737381039046,-500.0,0.00019178,2]
[349696017,1737381039055,-500.0,0.00019178,2]
[349696018,1737381039065,-500.0,0.00019178,2]
[349696019,1737381039074,-500.0,0.00019178,2]
[349696020,1737381039083,-500.0,0.00019178,2]
[349696021,1737381039093,-500.0,0.00019178,2]
[349696022,1737381039108,-514.28,0.00019178,2]
[349696023,1737381039119,-514.8,0.00019178,2]
[349696024,1737381039129,-500.0,0.00019178,2]
[349696025,1737381039139,-506.22,0.00019178,2]
[349696026,1737381039150,-500.0,0.00019178,2]
[349696027,1737381039160,-500.0,0.00019178,2]
[349696028,1737381039169,-500.0,0.00019178,2]
[349696029,1737381039180,-581.29403618,0.00019178,2]
[349696030,1737381039190,-512.7,0.00019178,2]
[349696031,1737381039199,-500.0,0.00019178,2]
[349696032,1737381039213,-500.0,0.00019178,2]
[349696033,1737381039223,-500.0,0.00019178,2]
[349696034,1737381039233,-530.01895887,0.00019178,2]
[349696035,1737381039243,-310.35,0.00019178,2]
[349696036,1737381039252,-500.0,0.00019178,2]
[349696037,1737381039262,-545.89,0.00019178,2]
[349696038,1737381039272,-250.51749447,0.00019178,2]